fUST/lending_fUST_20260106
["ID","MTS","AMOUNT","RATE_DAILY","PERIOD"]
[400510202,1767683441104,-152.0,0.00019545,2]
[400510203,1767683441114,-152.0,0.00019545,2]
[400510204,1767683441124,-347.0,0.00019545,2]
[400510205,1767683441134,-152.0,0.00019545,2]
[400510206,1767683441144,-151.0,0.00019545,2]
[400510207,1767683441153,-152.0,0.00019545,2]
[400510208,1767683441162,-163.0,0.00019545,2]
[400510209,1767683441172,-152.0,0.00019545,2]
[400510210,1767683441181,-347.0,0.00019545,2]
[400510211,1767683441191,-151.0,0.00019545,2]
[400510212,1767683441201,-166.0,0.00019545,2]
[400510213,1767683441211,-152.0,0.00019545,2]
[400510214,1767683441222,-203.94663828,0.00019545,2]
[400510215,1767683441232,-152.0,0.00019545,2]
[400510216,1767683441241,-347.0,0.00019545,2]
[400510217,1767683441251,-151.0,0.00019545,2]
[400510218,1767683441261,-166.0,0.00019545,2]
[400510219,1767683441271,-336.0,0.00019545,2]
[400510220,1767683441281,-152.0,0.00019545,2]
[400510221,1767683441292,-152.0,0.00019545,2]
[400510222,1767683441302,-151.0,0.00019545,2]
[400510223,1767683441313,-347.0,0.00019545,2]
[400510224,1767683441323,-166.0,0.00019545,2]
[400510225,1767683441333,-336.0,0.00019545,2]
[400510226,1767683441342,-300.09906801,0.00019545,2]
[400510227,1767683441353,-347.0,0.00019545,2]
[400510228,1767683441362,-151.0,0.00019545,2]
[400510229,1767683441372,-152.0,0.00019545,2]
[400510230,1767683441381,-166.0,0.00019545,2]
[400510231,1767683441391,-347.0,0.00019545,2]
[400510232,1767683441401,-151.0,0.00019545,2]
[400510233,1767683441411,-336.0,0.00019545,2]
[400510234,1767683441421,-152.0,0.00019545,2]
[400510235,1767683441430,-347.0,0.00019545,2]
[400510236,1767683441441,-166.0,0.00019545,2]
[400510237,1767683441451,-336.0,0.00019545,2]
[400510238,1767683441461,-151.0,0.00019545,2]
[400510239,1767683441471,-152.0,0.00019545,2]
[400510240,1767683441480,-166.0,0.00019545,2]
[400510241,1767683441490,-347.0,0.00019545,2]
[400510242,1767683441499,-336.0,0.00019545,2]
[400510243,1767683441509,-151.0,0.00019545,2]
[400510244,1767683441518,-152.0,0.00019545,2]
[400510245,1767683441528,-172.0,0.00019545,2]
[400510246,1767683441538,-347.0,0.00019545,2]
[400510247,1767683441547,-336.0,0.00019545,2]
[400510248,1767683441556,-151.0,0.00019545,2]
[400510249,1767683441566,-152.0,0.00019545,2]
[400510250,1767683441575,-347.0,0.00019545,2]
[400510251,1767683441586,-336.0,0.00019545,2]
[400510252,1767683441595,-151.0,0.00019545,2]
[400510253,1767683441606,-347.0,0.00019545,2]
[400510254,1767683441617,-152.0,0.00019545,2]
[400510255,1767683441626,-336.0,0.00019545,2]
[400510256,1767683441637,-151.0,0.00019545,2]
[400510257,1767683441650,-151.0,0.00019545,2]
[400510258,1767683441660,-347.0,0.00019545,2]
[400510259,1767683441669,-336.0,0.00019545,2]
[400510260,1767683441679,-152.0,0.00019545,2]
[400510261,1767683441689,-151.0,0.00019545,2]
[400510262,1767683441699,-151.0,0.00019545,2]
[400510263,1767683441708,-347.0,0.00019545,2]
[400510264,1767683441719,-151.0,0.00019545,2]
[400510265,1767683441729,-151.0,0.00019545,2]
[400510266,1767683441739,-347.0,0.00019545,2]
[400510267,1767683441749,-152.0,0.00019545,2]
[400510268,1767683441757,-336.0,0.00019545,2]
[400510269,1767683441766,-151.0,0.00019545,2]
[400510270,1767683441777,-151.0,0.00019545,2]
[400510271,1767683441786,-347.0,0.00019545,2]
[400510272,1767683441797,-152.0,0.00019545,2]
[400510273,1767683441806,-151.0,0.00019545,2]
[400510274,1767683441816,-336.0,0.00019545,2]
[400510275,1767683441826,-151.0,0.00019545,2]
[400510276,1767683441836,-347.0,0.00019545,2]
[400510277,1767683441845,-152.0,0.00019545,2]
[400510278,1767683441855,-151.0,0.00019545,2]
[400510279,1767683441865,-151.0,0.00019545,2]
[400510280,1767683441886,-336.0,0.00019545,2]
[400510281,1767683441896,-347.0,0.00019545,2]
[400510282,1767683441906,-151.0,0.00019545,2]
[400510283,1767683441915,-152.0,0.00019545,2]
[400510284,1767683441925,-336.0,0.00019545,2]
[400510285,1767683441935,-151.0,0.00019545,2]
[400510286,1767683441944,-347.0,0.00019545,2]
[400510287,1767683441954,-151.0,0.00019545,2]
[400510288,1767683441963,-152.0,0.00019545,2]
[400510289,1767683441973,-151.0,0.00019545,2]
[400510290,1767683441987,-336.0,0.00019545,2]
[400510291,1767683441997,-347.0,0.00019545,2]
[400510292,1767683442006,-151.0,0.00019545,2]
[400510293,1767683442016,-152.0,0.00019545,2]
[400510294,1767683442027,-151.0,0.00019545,2]
[400510295,1767683442038,-336.0,0.00019545,2]
[400510296,1767683442047,-347.0,0.00019545,2]
[400510297,1767683442056,-187.9115595,0.00019545,2]
[400510298,1767683442065,-151.0,0.00019545,2]
[400510299,1767683442076,-266.60656086,0.00019545,2]
[400510300,1767683442086,-347.0,0.00019545,2]
[400510301,1767683442095,-336.0,0.00019545,2]
[400510302,1767683442105,-151.0,0.00019545,2]
[400510303,1767683442114,-347.0,0.00019545,2]
[400510304,1767683442123,-336.0,0.00019545,2]
[400510305,1767683442133,-151.0,0.00019545,2]
[400510306,1767683442143,-347.0,0.00019545,2]
[400510307,1767683442152,-336.0,0.00019545,2]
[400510308,1767683442162,-151.0,0.00019545,2]
[400510309,1767683442171,-347.0,0.00019545,2]
[400510310,1767683442181,-336.0,0.00019545,2]
[400510311,1767683442190,-151.0,0.00019545,2]
[400510312,1767683442200,-123.62408806,0.00019545,2]
[400510361,1767683446413,-187.13989214,0.0001447,2]
[400510363,1767683446424,-112.86010786,0.00019545,2]
[400510549,1767684638488,-4379.44321643,0.00012877,2]
[400510550,1767684638498,-276.28262276,0.00013106,2]
[400510551,1767684638509,-300.0,0.00013272,2]
[400510552,1767684638518,-1200.0,0.00013272,2]
[400510553,1767684638527,-500.0,0.00013273,2]
[400510554,1767684638537,-500.0,0.00013273,2]
[400510555,1767684638547,-500.0,0.00013273,2]
[400510556,1767684638557,-497.04994014,0.00013273,2]
[400510557,1767684638567,-500.0,0.00013273,2]
[400510559,1767684638576,-500.0,0.00013273,2]
[400510560,1767684638585,-500.0,0.00013273,2]
[400510561,1767684638594,-500.0,0.00013399,2]
[400510562,1767684638604,-10676.716559,0.00013462,2]
[400510563,1767684638614,-1000000.0,0.0001352,2]
[400510564,1767684638623,-500.0,0.00013536,2]
[400510565,1767684638635,-151.0,0.000136,2]
[400510566,1767684638644,-164.755,0.000136,2]
[400510567,1767684638654,-300.0,0.00013673,2]
[400510568,1767684638665,-500.0,0.00013673,2]
[400510569,1767684638675,-500.0,0.00013698,2]
[400510570,1767684638684,-500.0,0.00013698,2]
[400510571,1767684638694,-500.0,0.00013698,2]
[400510572,1767684638707,-500.0,0.00013698,2]
[400510573,1767684638716,-500.0,0.00013698,2]
[400510574,1767684638726,-500.0,0.00013698,2]
[400510575,1767684638736,-500.0,0.00013698,2]
[400510576,1767684638745,-500.0,0.00013698,2]
[400510577,1767684638755,-500.0,0.00013698,2]
[400510578,1767684638765,-500.0,0.00013698,2]
[400510579,1767684638776,-500.0,0.00013698,2]
[400510580,1767684638786,-500.0,0.00013698,2]
[400510581,1767684638795,-500.0,0.00013698,2]
[400510582,1767684638804,-500.0,0.00013698,2]
[400510583,1767684638814,-500.0,0.00013698,2]
[400510584,1767684638824,-500.0,0.00013698,2]
[400510585,1767684638833,-500.0,0.00013698,2]
[400510586,1767684638843,-500.0,0.00013698,2]
[400510587,1767684638852,-500.0,0.00013698,2]
[400510588,1767684638861,-500.0,0.00013698,2]
[400510589,1767684638870,-546.288124,0.00013699,2]
[400510590,1767684638879,-500.0,0.00013699,2]
[400510591,1767684638891,-500.0,0.00013699,2]
[400510592,1767684638900,-563.41663894,0.00013699,2]
[400510593,1767684638910,-500.0,0.00013699,2]
[400510594,1767684638919,-500.0,0.00013699,2]
[400510595,1767684638928,-500.0,0.00013699,2]
[400510596,1767684638937,-500.0,0.00013699,2]
[400510597,1767684638947,-500.0,0.00013699,2]
[400510598,1767684638956,-600.0,0.0001381,2]
[400510599,1767684638966,-1000.0,0.00013821,2]
[400510600,1767684638975,-1000.0,0.00013821,2]
[400510601,1767684638984,-1000.0,0.00013821,2]
[400510602,1767684638994,-334.48545738,0.00013821,2]
[400510603,1767684639003,-1000.0,0.00013821,2]
[400510604,1767684639012,-1000.0,0.00013821,2]
[400510605,1767684639022,-5000.0,0.0001386,2]
[400510606,1767684639031,-300.0,0.00013891,2]
[400510607,1767684639041,-300.0,0.00013891,2]
[400510608,1767684639050,-300.0,0.00013891,2]
[400510609,1767684639060,-300.0,0.00013891,2]
[400510610,1767684639070,-300.0,0.00013891,2]
[400510611,1767684639080,-300.0,0.00013891,2]
[400510612,1767684639090,-300.0,0.00013891,2]
[400510613,1767684639100,-300.0,0.00013891,2]
[400510614,1767684639109,-300.0,0.00013891,2]
[400510615,1767684639119,-300.0,0.00013891,2]
[400510616,1767684639128,-300.0,0.00013891,2]
[400510617,1767684639140,-300.0,0.00013891,2]
[400510618,1767684639150,-300.0,0.00013891,2]
[400510619,1767684639160,-300.0,0.00013891,2]
[400510620,1767684639169,-300.0,0.00013891,2]
[400510621,1767684639179,-600.0,0.00013892,2]
[400510622,1767684639189,-1041.66666667,0.00013962,2]
[400510623,1767684639198,-154.22403567,0.00014084,2]
[400510624,1767684639207,-600.0,0.00014221,2]
[400510625,1767684639217,-511.34041447,0.00014247,2]
[400510626,1767684639226,-690.51130763,0.00014247,2]
[400510627,1767684639236,-1000.0,0.00014247,2]
[400510628,1767684639246,-1000.0,0.00014247,2]
[400510629,1767684639258,-692.18736728,0.00014247,2]
[400510630,1767684639267,-533.7772006,0.00014247,2]
[400510631,1767684639275,-1000.0,0.00014247,2]
[400510632,1767684639284,-1500.0,0.00014368,2]
[400510633,1767684639293,-1500.0,0.00014368,2]
[400510634,1767684639303,-538.81751467,0.00014368,2]
[400510635,1767684639312,-1500.0,0.00014368,2]
[400510636,1767684639322,-1500.0,0.00014368,2]
[400510637,1767684639332,-420.0,0.00014551,2]
[400510638,1767684639342,-1680.0,0.00014599,2]
[400510639,1767684639351,-100000.0,0.00014736,2]
[400510640,1767684639361,-886.81663952,0.00014768,2]
[400510641,1767684639371,-1500.0,0.00014795,2]
[400510642,1767684639380,-1500.0,0.00014795,2]
[400510643,1767684639392,-1506.10461326,0.00014795,2]
[400510644,1767684639402,-2000.0,0.00014916,2]
[400510645,1767684639411,-524.85596201,0.00014916,2]
[400510646,1767684639420,-380.83045081,0.00014916,2]
[400510647,1767684639430,-1000.0,0.00014916,2]
[400510648,1767684639439,-1000.0,0.00015,2]
[400510649,1767684639448,-1159.7728086,0.00015,2]
[400510650,1767684639458,-165870.3848377,0.0001501,2]
[400510651,1767684639467,-800.0,0.00015068,2]
[400510652,1767684639478,-1847.171,0.00015068,2]
[400510653,1767684639487,-326.01349486,0.00015106,2]
[400510654,1767684639496,-720.0,0.00015282,2]
[400510655,1767684639505,-505.12105821,0.00015342,2]
[400510656,1767684639514,-2000.0,0.00015342,2]
[400510657,1767684639524,-990.05554086,0.00015464,2]
[400510658,1767684639533,-163.06318377,0.0001558,2]
[400510659,1767684639543,-3088.70778863,0.00015884,4]
[400510660,1767684639553,-2500.0,0.0001589,2]
[400510661,1767684639562,-5000.0,0.00015939,2]
[400510662,1767684639572,-587.0,0.00015953,2]
[400510663,1767684639582,-798.0,0.00016059,2]
[400510664,1767684639591,-801.09070688,0.00016164,2]
[400510665,1767684639601,-594.0421836,0.00016438,2]
[400510666,1767684639610,-500.0,0.00016438,2]
[400510667,1767684639620,-3000.0,0.00016438,2]
[400510668,1767684639630,-511719.96578393,0.00016731,2]
[400510669,1767684639640,-2307.70551615,0.00016734,2]
[400510670,1767684639650,-628.0,0.000168,2]
[400510671,1767684639659,-2145.0,0.000168,2]
[400510672,1767684639669,-1365.0,0.000168,2]
[400510673,1767684639679,-301.015,0.000168,2]
[400510674,1767684639688,-417.676,0.000168,2]
[400510675,1767684639698,-864.0,0.0001681,2]
[400510676,1767684639707,-10676.71655896,0.00016811,2]
[400510677,1767684639716,-3500.0,0.00016986,2]
[400510678,1767684639726,-2307.70551615,0.00017096,2]
[400510679,1767684639735,-375.74436696,0.00017106,2]
[400510680,1767684639744,-4068.2770515,0.00017224,6]
[400510681,1767684639754,-2307.70551615,0.00017522,2]
[400510682,1767684639763,-4000.0,0.00017534,2]
[400510683,1767684639773,-250.38477157,0.00017562,2]
[400510684,1767684639783,-2307.70551615,0.00017577,2]
[400510685,1767684639928,-3240.40804102,0.0001762,2]
[400510686,1767684639939,-18726.91084438,0.000178,3]
[400510687,1767684639949,-413.91421013,0.00017841,2]
[400510688,1767684639959,-1655.65684051,0.00017841,2]
[400510689,1767684639968,-3725.22789115,0.00017841,2]
[400510690,1767684639977,-6616.00473467,0.00017841,2]
[400510691,1767684639987,-2307.70551615,0.00017869,2]
[400510692,1767684640006,-134582.11191022,0.00017998,2]
[400510693,1767684640165,-3635.17447835,0.00017998,2]
[400510694,1767684640188,-538.362,0.00017998,2]
[400510695,1767684640203,-413.9800501,0.00017998,2]
[400510706,1767684640894,-6534.77208706,0.00017998,2]
[400510758,1767684646525,-1804.01733172,0.00017998,2]
[400510764,1767684646570,-794.2036942,0.00017998,2]
[400510778,1767684812082,500.0,0.00030136,120]
[400510779,1767684812335,325.39540561,0.00030136,120]
[400510780,1767684828521,205.18656093,0.00030137,120]
[400510788,1767685274568,155.0,3e-05,2]
[400510828,1767685832528,-534.64380724,0.00012942,2]
[400510829,1767685832540,-4465.35619276,0.00012942,2]
[400510830,1767685832550,-603.0,0.00012942,2]
[400510831,1767685832561,-277.76924625,0.00013073,2]
[400510832,1767685832571,-164.755,0.0001325,2]
[400510833,1767685832580,-1200.0,0.00013271,2]
[400510834,1767685832591,-300.0,0.00013272,2]
[400510835,1767685832602,-500.0,0.00013273,2]
[400510836,1767685832611,-334.48545738,0.00013273,2]
[400510837,1767685832621,-500.0,0.00013273,2]
[400510839,1767685832631,-500.0,0.00013273,2]
[400510840,1767685832642,-500.0,0.00013273,2]
[400510841,1767685832653,-500.0,0.00013273,2]
[400510842,1767685832662,-6606.1566642,0.000134,2]
[400510843,1767685832684,-2600.0,0.000134,2]
[400510844,1767685832695,-135.97032489,0.000134,2]
[400510845,1767685832704,-500.0,0.00013418,2]
[400510846,1767685832715,-580.13192316,0.00013418,2]
[400510847,1767685832724,-228.44279003,0.00013418,2]
[400510848,1767685832733,-580.13192316,0.00013418,2]
[400510849,1767685832743,-725.32303876,0.00013419,2]
[400510850,1767685832754,-717.75784417,0.00013419,2]
[400510851,1767685832765,-4986.70812462,0.00013419,2]
[400510887,1767685838696,-580.13192316,0.00013418,2]
[400510889,1767685838706,-580.13192316,0.00013418,2]
[400510891,1767685838716,-580.13192316,0.00013418,2]
[400510893,1767685838726,-580.13192316,0.00013418,2]
[400510895,1767685838735,-580.13192316,0.00013418,2]
[400510897,1767685838745,-580.13192316,0.00013418,2]
[400510899,1767685838755,-580.13192316,0.00013418,2]
[400510901,1767685838764,-580.13192316,0.00013418,2]
[400510903,1767685838774,-580.13192316,0.00013418,2]
[400510905,1767685838786,-580.13192316,0.00013418,2]
[400510907,1767685838796,-993570.21099245,0.00013419,2]
[400510909,1767685838806,-151.0,0.000135,2]
[400510911,1767685838816,-302.0,0.000135,2]
[400510913,1767685838826,-500.0,0.00013514,2]
[400510915,1767685838835,-240.00397434,0.00013519,2]
[400510917,1767685838845,-500.0,0.00013651,2]
[400510919,1767685838854,-300.0,0.00013673,2]
[400510921,1767685838864,-500.0,0.00013698,2]
[400510923,1767685838873,-500.0,0.00013698,2]
[400510924,1767685838882,-500.0,0.00013698,2]
[400510926,1767685838891,-500.0,0.00013698,2]
[400510928,1767685838901,-500.0,0.00013698,2]
[400510930,1767685838911,-500.0,0.00013698,2]
[400510932,1767685838920,-500.0,0.00013698,2]
[400510934,1767685838929,-500.0,0.00013698,2]
[400510936,1767685838939,-500.0,0.00013698,2]
[400510937,1767685838949,-500.0,0.00013698,2]
[400510940,1767685838960,-500.0,0.00013698,2]
[400510941,1767685838971,-500.0,0.00013698,2]
[400510943,1767685838981,-500.0,0.00013698,2]
[400510946,1767685838991,-500.0,0.00013698,2]
[400510947,1767685839001,-500.0,0.00013698,2]
[400510949,1767685839011,-500.0,0.00013698,2]
[400510951,1767685839021,-500.0,0.00013698,2]
[400510953,1767685839031,-500.0,0.00013698,2]
[400510955,1767685839040,-500.0,0.00013698,2]
[400510957,1767685839050,-500.0,0.00013698,2]
[400510959,1767685839060,-1000.0,0.00013699,2]
[400510961,1767685839070,-1175.48587,0.00013699,2]
[400510963,1767685839080,-563.41663894,0.00013699,2]
[400510965,1767685839090,-500.0,0.00013699,2]
[400510967,1767685839100,-500.0,0.00013699,2]
[400510969,1767685839110,-500.0,0.00013699,2]
[400510971,1767685839120,-500.0,0.00013699,2]
[400510973,1767685839130,-500.0,0.00013699,2]
[400510975,1767685839142,-500.0,0.00013699,2]
[400510977,1767685839152,-500.0,0.00013699,2]
[400510979,1767685839162,-600.0,0.00013788,2]
[400510981,1767685839171,-300.0,0.00013788,2]
[400510983,1767685839181,-300.0,0.00013788,2]
[400510985,1767685839190,-300.0,0.00013788,2]
[400510987,1767685839200,-300.0,0.00013788,2]
[400510989,1767685839209,-300.0,0.00013788,2]
[400510991,1767685839220,-300.0,0.00013788,2]
[400510993,1767685839229,-300.0,0.00013788,2]
[400510995,1767685839239,-300.0,0.00013788,2]
[400510997,1767685839248,-300.0,0.00013788,2]
[400510999,1767685839257,-300.0,0.00013788,2]
[400511001,1767685839267,-300.0,0.00013788,2]
[400511003,1767685839276,-300.0,0.00013788,2]
[400511005,1767685839285,-300.0,0.00013788,2]
[400511007,1767685839294,-300.0,0.00013788,2]
[400511009,1767685839303,-300.0,0.00013788,2]
[400511011,1767685839313,-600.0,0.00013788,2]
[400511012,1767685839322,-1038.81751467,0.00013821,2]
[400511014,1767685839331,-1000.0,0.00013821,2]
[400511016,1767685839340,-1000.0,0.00013821,2]
[400511018,1767685839350,-1000.0,0.00013821,2]
[400511020,1767685839359,-1000.0,0.00013821,2]
[400511022,1767685839368,-5000.0,0.0001386,2]
[400511024,1767685839377,-200.0,0.00013925,2]
[400511026,1767685839387,-1041.66666667,0.00014004,2]
[400511028,1767685839396,-1088.65018529,0.00014175,2]
[400511030,1767685839406,-154.22403567,0.00014199,2]
[400511032,1767685839416,-600.0,0.00014221,2]
[400511034,1767685839425,-690.51130763,0.00014247,2]
[400511036,1767685839434,-511.34041447,0.00014247,2]
[400511038,1767685839442,-692.18736728,0.00014247,2]
[400511040,1767685839451,-1000.0,0.00014247,2]
[400511043,1767685839469,-1000.0,0.00014247,2]
[400511045,1767685839480,-1000.0,0.00014247,2]
[400511047,1767685839489,-533.7772006,0.00014247,2]
[400511049,1767685839498,-1524.85596201,0.00014368,2]
[400511051,1767685839507,-1500.0,0.00014368,2]
[400511053,1767685839517,-1500.0,0.00014368,2]
[400511055,1767685839526,-1380.83045081,0.00014368,2]
[400511057,1767685839535,-420.0,0.00014551,2]
[400511059,1767685839545,-1278.0,0.00014598,2]
[400511079,1767685839731,-100000.0,0.00014736,2]
[400511081,1767685839744,-886.81663952,0.00014768,2]
[400511083,1767685839755,-1500.0,0.00014795,2]
[400511085,1767685839765,-1500.0,0.00014795,2]
[400511087,1767685839776,-1506.10461326,0.00014795,2]
[400511089,1767685839785,-2000.0,0.00014916,2]
[400511091,1767685839795,-500.0,0.00014916,2]
[400511094,1767685839805,-1000.0,0.00015,2]
[400511096,1767685839815,-551.961145,0.00015068,2]
[400511097,1767685839824,-800.0,0.00015068,2]
[400511099,1767685839833,-327.76771058,0.00015073,2]
[400511102,1767685839843,-720.0,0.00015167,2]
[400511103,1767685839852,-253.33,0.00015242,2]
[400511105,1767685839861,-2000.0,0.00015342,2]
[400511107,1767685839870,-505.12105821,0.00015342,2]
[400511109,1767685839879,-490.05554086,0.00015464,2]
[400511111,1767685839888,-163.06318377,0.0001558,2]
[400511113,1767685839897,-2965.95055588,0.00015761,3]
[400511115,1767685839907,-2500.0,0.0001589,2]
[400511117,1767685839916,-5000.0,0.00015939,2]
[400511119,1767685839925,-390.0,0.00015953,2]
[400511121,1767685839934,-672.34589544,0.00016102,2]
[400511123,1767685839944,-2689.38358175,0.00016102,2]
[400511125,1767685839952,-6045.06194588,0.00016102,2]
[400511127,1767685839961,-801.099384,0.00016164,2]
[400511129,1767685839971,-3000.0,0.00016438,2]
[400511131,1767685839981,-798.9562754,0.00016655,2]
[400511133,1767685839990,-9938.5574767,0.00016655,2]
[400511135,1767685839999,-19095.1129008,0.00016655,2]
[400511137,1767685840009,-69966.6818568,0.00016655,2]
[400511139,1767685840018,-993.4473141,0.00016655,2]
[400511141,1767685840027,-3332.3304437,0.00016655,2]
[400511143,1767685840036,-7706.36793432,0.00016655,2]
[400511144,1767685840045,-864.0,0.00016684,2]
[400511146,1767685840055,-512611.07714652,0.00016731,2]
[400511148,1767685840065,-9342.12698909,0.00016759,2]
[400511151,1767685840078,-3500.0,0.00016986,2]
[400511153,1767685840089,-377.76617491,0.00017073,2]
[400511155,1767685840098,-250.38477157,0.00017101,2]
[400511157,1767685840107,-3904.60074117,0.00017106,6]
[400511159,1767685840117,-1365.0,0.00017175,2]
[400511161,1767685840127,-2145.0,0.00017175,2]
[400511163,1767685840137,-150.275,0.00017175,2]
[400511165,1767685840146,-150.994,0.00017175,2]
[400511167,1767685840155,-4000.0,0.00017534,2]
[400511169,1767685840165,-2462.94558633,0.00017649,2]
[400511171,1767685840175,-26768.09963316,0.00017998,2]
[400511173,1767685840184,-347.0,0.00017998,2]
[400511175,1767685840194,-347.0,0.00017998,2]
[400511177,1767685840203,-151.0,0.00017998,2]
[400511179,1767685840212,-152.0,0.00017998,2]
[400511181,1767685840222,-166.0,0.00017998,2]
[400511183,1767685840232,-163.0,0.00017998,2]
[400511185,1767685840241,-152.0,0.00017998,2]
[400511187,1767685840250,-347.0,0.00017998,2]
[400511189,1767685840261,-151.0,0.00017998,2]
[400511190,1767685840271,-336.0,0.00017998,2]
[400511192,1767685840280,-152.0,0.00017998,2]
[400511194,1767685840290,-203.94663828,0.00017998,2]
[400511196,1767685840300,-166.0,0.00017998,2]
[400511198,1767685840309,-152.0,0.00017998,2]
[400511200,1767685840319,-347.0,0.00017998,2]
[400511202,1767685840328,-151.0,0.00017998,2]
[400511204,1767685840337,-336.0,0.00017998,2]
[400511206,1767685840347,-152.0,0.00017998,2]
[400511208,1767685840356,-166.0,0.00017998,2]
[400511209,1767685840365,-152.0,0.00017998,2]
[400511212,1767685840374,-347.0,0.00017998,2]
[400511213,1767685840384,-151.0,0.00017998,2]
[400511215,1767685840393,-336.0,0.00017998,2]
[400511216,1767685840402,-152.0,0.00017998,2]
[400511217,1767685840411,-166.0,0.00017998,2]
[400511218,1767685840420,-152.0,0.00017998,2]
[400511219,1767685840430,-347.0,0.00017998,2]
[400511220,1767685840439,-151.0,0.00017998,2]
[400511221,1767685840449,-336.0,0.00017998,2]
[400511222,1767685840458,-300.09906801,0.00017998,2]
[400511223,1767685840468,-152.0,0.00017998,2]
[400511224,1767685840477,-166.0,0.00017998,2]
[400511225,1767685840486,-347.0,0.00017998,2]
[400511226,1767685840495,-151.0,0.00017998,2]
[400511227,1767685840505,-336.0,0.00017998,2]
[400511228,1767685840515,-166.0,0.00017998,2]
[400511229,1767685840524,-347.0,0.00017998,2]
[400511230,1767685840533,-336.0,0.00017998,2]
[400511231,1767685840543,-151.0,0.00017998,2]
[400511232,1767685840552,-172.0,0.00017998,2]
[400511233,1767685840561,-152.0,0.00017998,2]
[400511234,1767685840570,-347.0,0.00017998,2]
[400511235,1767685840580,-336.0,0.00017998,2]
[400511236,1767685840590,-151.0,0.00017998,2]
[400511238,1767685840599,-152.0,0.00017998,2]
[400511240,1767685840611,-347.0,0.00017998,2]
[400511242,1767685840622,-336.0,0.00017998,2]
[400511243,1767685840632,-151.0,0.00017998,2]
[400511245,1767685840641,-152.0,0.00017998,2]
[400511247,1767685840651,-151.0,0.00017998,2]
[400511249,1767685840661,-347.0,0.00017998,2]
[400511251,1767685840671,-336.0,0.00017998,2]
[400511253,1767685840681,-151.0,0.00017998,2]
[400511255,1767685840693,-152.0,0.00017998,2]
[400511256,1767685840703,-151.0,0.00017998,2]
[400511258,1767685840712,-336.0,0.00017998,2]
[400511260,1767685840722,-347.0,0.00017998,2]
[400511262,1767685840732,-151.0,0.00017998,2]
[400511264,1767685840741,-152.0,0.00017998,2]
[400511266,1767685840750,-151.0,0.00017998,2]
[400511268,1767685840763,-347.0,0.00017998,2]
[400511270,1767685840777,-336.0,0.00017998,2]
[400511272,1767685840787,-151.0,0.00017998,2]
[400511274,1767685840796,-152.0,0.00017998,2]
[400511276,1767685840805,-151.0,0.00017998,2]
[400511278,1767685840814,-336.0,0.00017998,2]
[400511280,1767685840823,-152.0,0.00017998,2]
[400511282,1767685840832,-347.0,0.00017998,2]
[400511284,1767685840841,-151.0,0.00017998,2]
[400511286,1767685840851,-336.0,0.00017998,2]
[400511288,1767685840860,-152.0,0.00017998,2]
[400511290,1767685840869,-151.0,0.00017998,2]
[400511292,1767685840879,-151.0,0.00017998,2]
[400511294,1767685840888,-151.0,0.00017998,2]
[400511296,1767685840898,-152.0,0.00017998,2]
[400511298,1767685840907,-347.0,0.00017998,2]